[Event "Titled Tuesday Blitz July 11 Early 2023"]
[White "arenal72"]
[Black "Leon Oquendo, Jorge"]
[BlackFideId "3514803"]
[WhiteElo "2461"]
[BlackElo "2577"]
[Result "1-0"]
[Round "10"]
[TimeControl "180+2"]
[Date "2023.07.11"]
[WhiteClock "0:00:13"]
[BlackClock "0:00:01"]
[Board "36"]

1. e4 {[%clk 0:03:00]}  c5 {[%clk 0:02:58]} 2. Nf3 {[%clk 0:03:01]}  d6 {[%clk 0:02:56]} 3. d4 {[%clk 0:03:01]}  cxd4 {[%clk 0:02:57]} 4. Nxd4 {[%clk 0:03:01]}  Nf6 {[%clk 0:02:57]} 5. Nc3 {[%clk 0:03:01]}  Nc6 {[%clk 0:02:58]} 6. Be3 {[%clk 0:02:57]}  Ng4 {[%clk 0:02:57]} 7. Bg5 {[%clk 0:02:54]}  h6 {[%clk 0:02:56]} 8. Bh4 {[%clk 0:02:54]}  g5 {[%clk 0:02:57]} 9. Bg3 {[%clk 0:02:53]}  Bg7 {[%clk 0:02:58]} 10. Nf5 {[%clk 0:02:52]}  Bxf5 {[%clk 0:02:57]} 11. exf5 {[%clk 0:02:53]}  Bxc3+ {[%clk 0:02:47]} 12. bxc3 {[%clk 0:02:53]}  Nf6 {[%clk 0:02:46]} 13. h4 {[%clk 0:02:52]}  Rg8 {[%clk 0:02:37]} 14. hxg5 {[%clk 0:02:52]}  hxg5 {[%clk 0:02:36]} 15. Rb1 {[%clk 0:02:51]}  Qa5 {[%clk 0:02:15]} 16. Qf3 {[%clk 0:02:32]}  O-O-O {[%clk 0:02:08]} 17. Bb5 {[%clk 0:02:28]}  Kc7 {[%clk 0:01:51]} 18. O-O {[%clk 0:02:19]}  g4 {[%clk 0:01:24]} 19. Qd3 {[%clk 0:02:05]}  Rh8 {[%clk 0:01:24]} 20. Bxc6 {[%clk 0:02:04]}  bxc6 {[%clk 0:01:23]} 21. Qe2 {[%clk 0:02:01]}  Rhe8 {[%clk 0:01:05]} 22. Rb4 {[%clk 0:01:57]}  Nd5 {[%clk 0:01:03]} 23. Rc4 {[%clk 0:01:55]}  Qb5 {[%clk 0:00:56]} 24. a4 {[%clk 0:01:49]}  Qa6 {[%clk 0:00:56]} 25. Qxg4 {[%clk 0:01:44]}  Rg8 {[%clk 0:00:43]} 26. Qe4 {[%clk 0:01:44]}  Kd7 {[%clk 0:00:31]} 27. Rd1 {[%clk 0:01:25]}  Qb6 {[%clk 0:00:24]} 28. Qf3 {[%clk 0:01:16]}  Rg5 {[%clk 0:00:20]} 29. Rg4 {[%clk 0:01:14]}  Rxg4 {[%clk 0:00:18]} 30. Qxg4 {[%clk 0:01:14]}  Nf6 {[%clk 0:00:18]} 31. Qc4 {[%clk 0:01:11]}  Rg8 {[%clk 0:00:19]} 32. Bxd6 {[%clk 0:00:37]}  Nd5 {[%clk 0:00:15]} 33. Bc5 {[%clk 0:00:35]}  Qc7 {[%clk 0:00:14]} 34. a5 {[%clk 0:00:24]}  Qe5 {[%clk 0:00:13]} 35. Qd4 {[%clk 0:00:23]}  Qxd4 {[%clk 0:00:12]} 36. cxd4 {[%clk 0:00:23]}  Rg5 {[%clk 0:00:10]} 37. c4 {[%clk 0:00:22]}  Nc3 {[%clk 0:00:09]} 38. Rd3 {[%clk 0:00:21]}  Ne2+ {[%clk 0:00:07]} 39. Kf1 {[%clk 0:00:21]}  Nf4 {[%clk 0:00:07]} 40. Rf3 {[%clk 0:00:20]}  Nxg2 {[%clk 0:00:07]} 41. Bxa7 {[%clk 0:00:20]}  Nh4 {[%clk 0:00:07]} 42. Rf4 {[%clk 0:00:20]}  Nxf5 {[%clk 0:00:06]} 43. Bc5 {[%clk 0:00:20]}  Nd6 {[%clk 0:00:06]} 44. Bxd6 {[%clk 0:00:20]}  Kxd6 {[%clk 0:00:06]} 45. c5+ {[%clk 0:00:20]}  Kd5 {[%clk 0:00:05]} 46. a6 {[%clk 0:00:21]}  Rg8 {[%clk 0:00:05]} 47. Rxf7 {[%clk 0:00:20]}  e5 {[%clk 0:00:05]} 48. Rd7+ {[%clk 0:00:19]}  Ke6 {[%clk 0:00:04]} 49. Rd6+ {[%clk 0:00:19]}  Kf5 {[%clk 0:00:04]} 50. dxe5 {[%clk 0:00:20]}  Kxe5 {[%clk 0:00:04]} 51. Rxc6 {[%clk 0:00:20]}  Ra8 {[%clk 0:00:04]} 52. Ke2 {[%clk 0:00:19]}  Kd5 {[%clk 0:00:04]} 53. Rh6 {[%clk 0:00:18]}  Kxc5 {[%clk 0:00:04]} 54. f4 {[%clk 0:00:19]}  Kd5 {[%clk 0:00:05]} 55. Kf3 {[%clk 0:00:19]}  Rg8 {[%clk 0:00:04]} 56. a7 {[%clk 0:00:18]}  Ra8 {[%clk 0:00:04]} 57. Rh7 {[%clk 0:00:19]}  Ke6 {[%clk 0:00:05]} 58. Rb7 {[%clk 0:00:17]}  Kf6 {[%clk 0:00:05]} 59. Ke4 {[%clk 0:00:17]}  Ke6 {[%clk 0:00:06]} 60. f5+ {[%clk 0:00:17]}  Kf6 {[%clk 0:00:07]} 61. Rb6+ {[%clk 0:00:17]}  Kf7 {[%clk 0:00:07]} 62. Ra6 {[%clk 0:00:17]}  Re8+ {[%clk 0:00:06]} 63. Kf4 {[%clk 0:00:17]}  Ra8 {[%clk 0:00:06]} 64. Kg5 {[%clk 0:00:17]}  Kg7 {[%clk 0:00:07]} 65. Rg6+ {[%clk 0:00:16]}  Kf7 {[%clk 0:00:07]} 66. Rh6 {[%clk 0:00:16]}  Kg7 {[%clk 0:00:08]} 67. f6+ {[%clk 0:00:16]}  Kg8 {[%clk 0:00:08]} 68. Rg6+ {[%clk 0:00:12]}  Kf8 {[%clk 0:00:07]} 69. Rg7 {[%clk 0:00:12]}  Rc8 {[%clk 0:00:05]} 70. Kg6 {[%clk 0:00:12]}  Ra8 {[%clk 0:00:04]} 71. Rb7 {[%clk 0:00:12]}  Rc8 {[%clk 0:00:01]} 72. Rb8 {[%clk 0:00:12]}  Ke8 {[%clk 0:00:02]} 73. Rxc8+ {[%clk 0:00:13]}  Kd7 {[%clk 0:00:01]} 74. a8=Q {[%clk 0:00:13]} 1-0


[Site "https://www.chess.com"]

[Event "Titled Tuesday Blitz July 11 Early 2023"]
[White "Dau Khuong Duy"]
[Black "Tologon tegin, Semetei"]
[WhiteFideId "12424722"]
[BlackFideId "13800574"]
[WhiteElo "2877"]
[BlackElo "2583"]
[Result "1-0"]
[Round "10"]
[TimeControl "180+2"]
[Date "2023.07.11"]
[WhiteClock "0:00:15"]
[BlackClock "0:00:04"]
[Board "37"]

1. e4 {[%clk 0:03:00]}  g6 {[%clk 0:02:57]} 2. d4 {[%clk 0:03:00]}  Bg7 {[%clk 0:02:58]} 3. Nc3 {[%clk 0:03:00]}  c6 {[%clk 0:02:57]} 4. h4 {[%clk 0:02:59]}  h5 {[%clk 0:02:56]} 5. Nh3 {[%clk 0:02:58]}  d5 {[%clk 0:02:56]} 6. e5 {[%clk 0:02:55]}  Bf5 {[%clk 0:02:56]} 7. Ng5 {[%clk 0:02:55]}  e6 {[%clk 0:02:54]} 8. f3 {[%clk 0:02:50]}  a6 {[%clk 0:02:39]} 9. Be3 {[%clk 0:02:50]}  c5 {[%clk 0:02:38]} 10. g4 {[%clk 0:02:26]}  hxg4 {[%clk 0:02:37]} 11. fxg4 {[%clk 0:02:27]}  Be4 {[%clk 0:02:36]} 12. Ncxe4 {[%clk 0:02:24]}  dxe4 {[%clk 0:02:37]} 13. Nxe4 {[%clk 0:02:15]}  cxd4 {[%clk 0:02:31]} 14. Nd6+ {[%clk 0:02:10]}  Kf8 {[%clk 0:02:29]} 15. Qf3 {[%clk 0:02:07]}  Qa5+ {[%clk 0:02:19]} 16. b4 {[%clk 0:01:26]}  Qc7 {[%clk 0:02:08]} 17. Bxd4 {[%clk 0:01:26]}  Nc6 {[%clk 0:02:04]} 18. Bc5 {[%clk 0:01:16]}  Nxe5 {[%clk 0:01:59]} 19. Qxb7 {[%clk 0:01:03]}  Qxb7 {[%clk 0:01:53]} 20. Nxb7+ {[%clk 0:01:04]}  Ne7 {[%clk 0:01:50]} 21. O-O-O {[%clk 0:01:03]}  Nxg4 {[%clk 0:01:37]} 22. Bg2 {[%clk 0:00:48]}  Bf6 {[%clk 0:01:29]} 23. Rhf1 {[%clk 0:00:42]}  Kg7 {[%clk 0:01:21]} 24. Nd6 {[%clk 0:00:30]}  Rad8 {[%clk 0:01:16]} 25. Bb6 {[%clk 0:00:23]}  Rb8 {[%clk 0:01:08]} 26. Bc5 {[%clk 0:00:23]}  Nf5 {[%clk 0:01:03]} 27. Nxf5+ {[%clk 0:00:23]}  gxf5 {[%clk 0:01:02]} 28. Bf3 {[%clk 0:00:18]}  Rxh4 {[%clk 0:01:01]} 29. a3 {[%clk 0:00:18]}  Kg6 {[%clk 0:00:46]} 30. Be2 {[%clk 0:00:18]}  a5 {[%clk 0:00:43]} 31. b5 {[%clk 0:00:17]}  Bg5+ {[%clk 0:00:37]} 32. Kb2 {[%clk 0:00:17]}  Rh2 {[%clk 0:00:36]} 33. Bd6 {[%clk 0:00:13]}  Rc8 {[%clk 0:00:35]} 34. Bxh2 {[%clk 0:00:12]}  Nxh2 {[%clk 0:00:33]} 35. Rg1 {[%clk 0:00:13]}  Kf6 {[%clk 0:00:30]} 36. Rg2 {[%clk 0:00:13]}  Bf4 {[%clk 0:00:29]} 37. Rh1 {[%clk 0:00:14]}  Be5+ {[%clk 0:00:29]} 38. Kb1 {[%clk 0:00:13]}  Rh8 {[%clk 0:00:19]} 39. c4 {[%clk 0:00:11]}  Rh3 {[%clk 0:00:15]} 40. Ka2 {[%clk 0:00:11]}  a4 {[%clk 0:00:16]} 41. Bd1 {[%clk 0:00:09]}  Bd6 {[%clk 0:00:14]} 42. c5 {[%clk 0:00:09]}  Bxc5 {[%clk 0:00:15]} 43. Rgxh2 {[%clk 0:00:09]}  Rxa3+ {[%clk 0:00:15]} 44. Kb1 {[%clk 0:00:10]}  Rc3 {[%clk 0:00:15]} 45. Rc2 {[%clk 0:00:10]}  Rxc2 {[%clk 0:00:11]} 46. Bxc2 {[%clk 0:00:11]}  f4 {[%clk 0:00:10]} 47. Bxa4 {[%clk 0:00:11]}  e5 {[%clk 0:00:10]} 48. Bc2 {[%clk 0:00:10]}  Ke6 {[%clk 0:00:11]} 49. Rh6+ {[%clk 0:00:10]}  Kd5 {[%clk 0:00:11]} 50. b6 {[%clk 0:00:11]}  e4 {[%clk 0:00:08]} 51. Rh5+ {[%clk 0:00:11]}  Kd4 {[%clk 0:00:08]} 52. Rxc5 {[%clk 0:00:12]}  Kxc5 {[%clk 0:00:08]} 53. b7 {[%clk 0:00:12]}  e3 {[%clk 0:00:09]} 54. b8=Q {[%clk 0:00:13]}  e2 {[%clk 0:00:10]} 55. Qe5+ {[%clk 0:00:13]}  Kb6 {[%clk 0:00:09]} 56. Qxe2 {[%clk 0:00:14]}  f3 {[%clk 0:00:04]} 57. Qxf3 {[%clk 0:00:15]} 1-0


[Site "https://www.chess.com"]

[Event "Titled Tuesday Blitz July 11 Early 2023"]
[White "Nasuta, Grzegorz"]
[Black "Arat, Ufuk Sezen"]
[WhiteFideId "1141686"]
[BlackFideId "6309089"]
[WhiteElo "2745"]
[BlackElo "2582"]
[Result "1-0"]
[Round "10"]
[TimeControl "180+2"]
[Date "2023.07.11"]
[WhiteClock "0:00:15"]
[BlackClock "0:00:44"]
[Board "38"]

1. e4 {[%clk 0:03:00]}  c5 {[%clk 0:02:58]} 2. Nf3 {[%clk 0:03:00]}  e6 {[%clk 0:02:58]} 3. d4 {[%clk 0:03:00]}  cxd4 {[%clk 0:02:59]} 4. Nxd4 {[%clk 0:03:01]}  Nc6 {[%clk 0:02:59]} 5. Nc3 {[%clk 0:03:01]}  Qc7 {[%clk 0:03:00]} 6. a3 {[%clk 0:02:59]}  a6 {[%clk 0:03:00]} 7. Be3 {[%clk 0:02:59]}  b5 {[%clk 0:03:01]} 8. Nxc6 {[%clk 0:02:59]}  Qxc6 {[%clk 0:03:02]} 9. Be2 {[%clk 0:02:58]}  Bb7 {[%clk 0:03:02]} 10. O-O {[%clk 0:02:57]}  Bc5 {[%clk 0:03:01]} 11. Bd4 {[%clk 0:02:54]}  Ne7 {[%clk 0:02:49]} 12. Bxg7 {[%clk 0:02:42]}  Rg8 {[%clk 0:02:49]} 13. Bd4 {[%clk 0:02:42]}  Ng6 {[%clk 0:02:45]} 14. g3 {[%clk 0:02:29]}  Nf4 {[%clk 0:02:21]} 15. Bf3 {[%clk 0:02:21]}  Nh3+ {[%clk 0:02:19]} 16. Kh1 {[%clk 0:02:13]}  O-O-O {[%clk 0:02:14]} 17. Bg2 {[%clk 0:02:11]}  Bxd4 {[%clk 0:01:51]} 18. Qxd4 {[%clk 0:02:00]}  e5 {[%clk 0:01:52]} 19. Qxe5 {[%clk 0:01:45]}  Rg5 {[%clk 0:01:49]} 20. Qd4 {[%clk 0:01:26]}  Rh5 {[%clk 0:01:47]} 21. Nd5 {[%clk 0:01:07]}  Kb8 {[%clk 0:01:36]} 22. Qf6 {[%clk 0:00:48]}  Qxf6 {[%clk 0:01:15]} 23. Nxf6 {[%clk 0:00:49]}  Rh6 {[%clk 0:01:16]} 24. Ng4 {[%clk 0:00:40]}  Rh5 {[%clk 0:01:17]} 25. Rad1 {[%clk 0:00:33]}  Ng5 {[%clk 0:01:14]} 26. Nf6 {[%clk 0:00:26]}  Rh6 {[%clk 0:01:13]} 27. Nxd7+ {[%clk 0:00:26]}  Ka7 {[%clk 0:01:13]} 28. Nc5 {[%clk 0:00:26]}  Rxd1 {[%clk 0:00:51]} 29. Rxd1 {[%clk 0:00:27]}  Bc6 {[%clk 0:00:50]} 30. f4 {[%clk 0:00:22]}  Ne6 {[%clk 0:00:47]} 31. Nxe6 {[%clk 0:00:22]}  Rxe6 {[%clk 0:00:46]} 32. e5 {[%clk 0:00:22]}  Bxg2+ {[%clk 0:00:45]} 33. Kxg2 {[%clk 0:00:23]}  Re7 {[%clk 0:00:42]} 34. Kf3 {[%clk 0:00:22]}  a5 {[%clk 0:00:42]} 35. c3 {[%clk 0:00:22]}  Kb6 {[%clk 0:00:43]} 36. Ke4 {[%clk 0:00:21]}  Kc5 {[%clk 0:00:44]} 37. Rd4 {[%clk 0:00:21]}  f6 {[%clk 0:00:43]} 38. b4+ {[%clk 0:00:19]}  Kc6 {[%clk 0:00:43]} 39. Rd6+ {[%clk 0:00:19]}  Kc7 {[%clk 0:00:44]} 40. Rxf6 {[%clk 0:00:19]}  axb4 {[%clk 0:00:45]} 41. axb4 {[%clk 0:00:19]}  Rd7 {[%clk 0:00:46]} 42. Rd6 {[%clk 0:00:16]}  Re7 {[%clk 0:00:44]} 43. f5 {[%clk 0:00:15]}  Re8 {[%clk 0:00:45]} 44. f6 {[%clk 0:00:15]}  Rf8 {[%clk 0:00:44]} 45. Kd5 {[%clk 0:00:15]} 1-0


[Site "https://www.chess.com"]

[Event "Titled Tuesday Blitz July 11 Early 2023"]
[White "NovoselovRoman"]
[Black "djokovic74"]
[WhiteElo "2574"]
[BlackElo "2700"]
[Result "1-0"]
[Round "10"]
[TimeControl "180+2"]
[Date "2023.07.11"]
[WhiteClock "0:00:26"]
[BlackClock "0:00:03"]
[Board "39"]

1. e4 {[%clk 0:03:00]}  e6 {[%clk 0:03:00]} 2. d4 {[%clk 0:03:00]}  d5 {[%clk 0:03:00]} 3. Nc3 {[%clk 0:03:00]}  Nf6 {[%clk 0:03:00]} 4. exd5 {[%clk 0:03:00]}  exd5 {[%clk 0:03:00]} 5. Bd3 {[%clk 0:03:00]}  Bd6 {[%clk 0:03:00]} 6. Nge2 {[%clk 0:03:00]}  c6 {[%clk 0:03:01]} 7. Bg5 {[%clk 0:03:01]}  h6 {[%clk 0:03:00]} 8. Bh4 {[%clk 0:03:00]}  Nbd7 {[%clk 0:03:01]} 9. Qd2 {[%clk 0:02:59]}  Nf8 {[%clk 0:02:52]} 10. O-O-O {[%clk 0:02:58]}  Ne6 {[%clk 0:02:53]} 11. Kb1 {[%clk 0:02:54]}  Bd7 {[%clk 0:02:52]} 12. f4 {[%clk 0:02:50]}  Qc7 {[%clk 0:02:48]} 13. f5 {[%clk 0:02:43]}  Nf8 {[%clk 0:02:46]} 14. Bxf6 {[%clk 0:02:38]}  gxf6 {[%clk 0:02:45]} 15. Qe3+ {[%clk 0:02:38]}  Kd8 {[%clk 0:02:41]} 16. Ng3 {[%clk 0:02:36]}  Bf4 {[%clk 0:02:29]} 17. Qf3 {[%clk 0:02:34]}  Bxg3 {[%clk 0:02:18]} 18. hxg3 {[%clk 0:02:35]}  Qd6 {[%clk 0:02:18]} 19. Rh3 {[%clk 0:02:20]}  Kc7 {[%clk 0:02:15]} 20. Rdh1 {[%clk 0:02:20]}  Re8 {[%clk 0:02:05]} 21. a3 {[%clk 0:02:20]}  Rg8 {[%clk 0:01:50]} 22. Ne2 {[%clk 0:02:20]}  Nh7 {[%clk 0:01:32]} 23. Rxh6 {[%clk 0:02:11]}  Ng5 {[%clk 0:01:33]} 24. Qf4 {[%clk 0:01:59]}  Qxf4 {[%clk 0:01:33]} 25. Nxf4 {[%clk 0:01:59]}  Ne4 {[%clk 0:01:33]} 26. Bxe4 {[%clk 0:01:43]}  Rxe4 {[%clk 0:01:06]} 27. Rxf6 {[%clk 0:01:31]}  Rxg3 {[%clk 0:01:01]} 28. Rf1 {[%clk 0:01:31]}  Re7 {[%clk 0:00:56]} 29. Rf2 {[%clk 0:01:26]}  Rg5 {[%clk 0:00:50]} 30. Nd3 {[%clk 0:01:25]}  Rg4 {[%clk 0:00:40]} 31. c3 {[%clk 0:01:21]}  Be8 {[%clk 0:00:30]} 32. Ne5 {[%clk 0:01:20]}  Rg3 {[%clk 0:00:31]} 33. Kc2 {[%clk 0:01:16]}  a5 {[%clk 0:00:30]} 34. Kd2 {[%clk 0:01:15]}  a4 {[%clk 0:00:27]} 35. Ke2 {[%clk 0:01:15]}  c5 {[%clk 0:00:27]} 36. Kf1 {[%clk 0:01:09]}  cxd4 {[%clk 0:00:22]} 37. cxd4 {[%clk 0:01:10]}  Bb5+ {[%clk 0:00:22]} 38. Kg1 {[%clk 0:01:08]}  Re8 {[%clk 0:00:21]} 39. Rxf7+ {[%clk 0:01:04]}  Kb6 {[%clk 0:00:22]} 40. f6 {[%clk 0:01:03]}  Rc8 {[%clk 0:00:21]} 41. Re7 {[%clk 0:00:58]}  Rgg8 {[%clk 0:00:09]} 42. f7 {[%clk 0:00:54]}  Rh8 {[%clk 0:00:09]} 43. g4 {[%clk 0:00:45]}  Rc1+ {[%clk 0:00:09]} 44. Kg2 {[%clk 0:00:45]}  Rhh1 {[%clk 0:00:01]} 45. f8=Q {[%clk 0:00:35]}  Rcg1+ {[%clk 0:00:02]} 46. Kf3 {[%clk 0:00:35]}  Rh3+ {[%clk 0:00:03]} 47. Kf4 {[%clk 0:00:36]}  Rd1 {[%clk 0:00:01]} 48. Re6+ {[%clk 0:00:33]}  Bc6 {[%clk 0:00:02]} 49. Qc5+ {[%clk 0:00:32]}  Ka6 {[%clk 0:00:01]} 50. Nxc6 {[%clk 0:00:28]}  b6 {[%clk 0:00:01]} 51. Nb4+ {[%clk 0:00:27]}  Ka7 {[%clk 0:00:02]} 52. Qc7+ {[%clk 0:00:26]}  Ka8 {[%clk 0:00:03]} 53. Re8# {[%clk 0:00:26]} 1-0


[Site "https://www.chess.com"]

[Event "Titled Tuesday Blitz July 11 Early 2023"]
[White "Komov, Roman"]
[Black "brm72"]
[WhiteFideId "24175714"]
[WhiteElo "2657"]
[BlackElo "2539"]
[Result "1-0"]
[Round "10"]
[TimeControl "180+2"]
[Date "2023.07.11"]
[WhiteClock "0:00:38"]
[BlackClock "0:00:42"]
[Board "46"]

1. e4 {[%clk 0:03:00]}  c6 {[%clk 0:03:00]} 2. d4 {[%clk 0:03:00]}  d5 {[%clk 0:03:00]} 3. Nd2 {[%clk 0:03:01]}  dxe4 {[%clk 0:03:00]} 4. Nxe4 {[%clk 0:03:02]}  Nf6 {[%clk 0:03:01]} 5. Nxf6+ {[%clk 0:03:03]}  exf6 {[%clk 0:03:02]} 6. c3 {[%clk 0:03:03]}  Bd6 {[%clk 0:03:02]} 7. Bd3 {[%clk 0:03:04]}  O-O {[%clk 0:03:03]} 8. Qc2 {[%clk 0:03:04]}  Re8+ {[%clk 0:03:04]} 9. Ne2 {[%clk 0:03:05]}  h5 {[%clk 0:03:05]} 10. O-O {[%clk 0:03:05]}  Nd7 {[%clk 0:03:02]} 11. Nf4 {[%clk 0:03:06]}  Qc7 {[%clk 0:02:53]} 12. g3 {[%clk 0:03:00]}  h4 {[%clk 0:02:52]} 13. Qd1 {[%clk 0:02:59]}  Nf8 {[%clk 0:02:43]} 14. Qh5 {[%clk 0:02:58]}  g6 {[%clk 0:02:30]} 15. Nxg6 {[%clk 0:02:53]}  fxg6 {[%clk 0:02:28]} 16. Bxg6 {[%clk 0:02:53]}  Re7 {[%clk 0:02:23]} 17. Bh6 {[%clk 0:02:52]}  Be6 {[%clk 0:02:01]} 18. Rae1 {[%clk 0:02:18]}  Bc4 {[%clk 0:01:52]} 19. Rxe7 {[%clk 0:01:40]}  Qxe7 {[%clk 0:01:53]} 20. Ra1 {[%clk 0:01:31]}  Be2 {[%clk 0:01:22]} 21. Bxf8 {[%clk 0:01:23]}  Bxh5 {[%clk 0:01:05]} 22. Bxe7 {[%clk 0:01:23]}  Bxg6 {[%clk 0:01:05]} 23. Bxd6 {[%clk 0:01:23]}  hxg3 {[%clk 0:01:02]} 24. hxg3 {[%clk 0:01:11]}  Kf7 {[%clk 0:00:57]} 25. a4 {[%clk 0:01:09]}  Be4 {[%clk 0:00:57]} 26. Re1 {[%clk 0:00:57]}  Bd5 {[%clk 0:00:49]} 27. Re7+ {[%clk 0:00:56]}  Kg6 {[%clk 0:00:50]} 28. Rxb7 {[%clk 0:00:43]}  Bf3 {[%clk 0:00:45]} 29. Rb8 {[%clk 0:00:40]}  Rxb8 {[%clk 0:00:45]} 30. Bxb8 {[%clk 0:00:41]}  Bd1 {[%clk 0:00:45]} 31. a5 {[%clk 0:00:39]}  Kf5 {[%clk 0:00:42]} 32. Bxa7 {[%clk 0:00:38]} 1-0


[Site "https://www.chess.com"]

[Event "Titled Tuesday Blitz July 11 Early 2023"]
[White "HamedWafa4"]
[Black "FromTexas54"]
[WhiteElo "2619"]
[BlackElo "2531"]
[Result "0-1"]
[Round "10"]
[TimeControl "180+2"]
[Date "2023.07.11"]
[WhiteClock "0:00:13"]
[BlackClock "0:01:20"]
[Board "48"]

1. e4 {[%clk 0:03:00]}  e5 {[%clk 0:02:59]} 2. Nf3 {[%clk 0:03:00]}  Nc6 {[%clk 0:02:59]} 3. Bb5 {[%clk 0:03:00]}  a6 {[%clk 0:03:00]} 4. Ba4 {[%clk 0:03:00]}  Nf6 {[%clk 0:03:00]} 5. O-O {[%clk 0:02:59]}  Be7 {[%clk 0:03:00]} 6. d3 {[%clk 0:02:55]}  d6 {[%clk 0:02:54]} 7. a3 {[%clk 0:02:51]}  O-O {[%clk 0:02:53]} 8. Nc3 {[%clk 0:02:50]}  b5 {[%clk 0:02:53]} 9. Bb3 {[%clk 0:02:50]}  Na5 {[%clk 0:02:54]} 10. Ba2 {[%clk 0:02:49]}  c5 {[%clk 0:02:54]} 11. Nd5 {[%clk 0:02:49]}  Nxd5 {[%clk 0:02:48]} 12. Bxd5 {[%clk 0:02:33]}  Ra7 {[%clk 0:02:46]} 13. b4 {[%clk 0:02:31]}  Nb7 {[%clk 0:02:45]} 14. Be3 {[%clk 0:02:16]}  Qc7 {[%clk 0:02:42]} 15. a4 {[%clk 0:02:06]}  bxa4 {[%clk 0:02:35]} 16. Rxa4 {[%clk 0:02:05]}  Bd7 {[%clk 0:02:34]} 17. Ra1 {[%clk 0:02:01]}  a5 {[%clk 0:02:31]} 18. Bxb7 {[%clk 0:01:56]}  Qxb7 {[%clk 0:02:28]} 19. bxa5 {[%clk 0:01:49]}  Rfa8 {[%clk 0:02:26]} 20. Rb1 {[%clk 0:01:32]}  Qc8 {[%clk 0:02:26]} 21. Bd2 {[%clk 0:01:28]}  Bd8 {[%clk 0:02:27]} 22. h3 {[%clk 0:01:22]}  Bxa5 {[%clk 0:02:26]} 23. Bxa5 {[%clk 0:01:22]}  Rxa5 {[%clk 0:02:27]} 24. Qd2 {[%clk 0:01:23]}  Ra2 {[%clk 0:02:24]} 25. Rb6 {[%clk 0:01:18]}  Qc7 {[%clk 0:02:18]} 26. Rfb1 {[%clk 0:01:18]}  Ra1 {[%clk 0:02:18]} 27. Rb2 {[%clk 0:01:12]}  h6 {[%clk 0:02:16]} 28. Rxa1 {[%clk 0:01:09]}  Rxa1+ {[%clk 0:02:16]} 29. Kh2 {[%clk 0:01:10]}  Be6 {[%clk 0:02:14]} 30. c4 {[%clk 0:01:03]}  Qa7 {[%clk 0:02:11]} 31. Qc3 {[%clk 0:00:57]}  Qa4 {[%clk 0:02:09]} 32. Qb3 {[%clk 0:00:54]}  Qxb3 {[%clk 0:01:56]} 33. Rxb3 {[%clk 0:00:55]}  Rd1 {[%clk 0:01:56]} 34. Kg3 {[%clk 0:00:54]}  f5 {[%clk 0:01:53]} 35. Rb8+ {[%clk 0:00:40]}  Kf7 {[%clk 0:01:51]} 36. Rb7+ {[%clk 0:00:39]}  Kf6 {[%clk 0:01:51]} 37. Rb3 {[%clk 0:00:26]}  fxe4 {[%clk 0:01:50]} 38. dxe4 {[%clk 0:00:27]}  Bxc4 {[%clk 0:01:48]} 39. Rb6 {[%clk 0:00:27]}  Be6 {[%clk 0:01:39]} 40. Rc6 {[%clk 0:00:23]}  Ke7 {[%clk 0:01:35]} 41. Rc7+ {[%clk 0:00:23]}  Kd8 {[%clk 0:01:33]} 42. Rxg7 {[%clk 0:00:21]}  c4 {[%clk 0:01:34]} 43. Rg6 {[%clk 0:00:17]}  c3 {[%clk 0:01:30]} 44. Rxe6 {[%clk 0:00:17]}  c2 {[%clk 0:01:31]} 45. Rxh6 {[%clk 0:00:18]}  c1=Q {[%clk 0:01:30]} 46. Rf6 {[%clk 0:00:16]}  Rd3 {[%clk 0:01:27]} 47. h4 {[%clk 0:00:15]}  d5 {[%clk 0:01:25]} 48. Rd6+ {[%clk 0:00:15]}  Ke7 {[%clk 0:01:24]} 49. Rxd5 {[%clk 0:00:15]}  Qf4+ {[%clk 0:01:24]} 50. Kh3 {[%clk 0:00:15]}  Rxf3+ {[%clk 0:01:18]} 51. gxf3 {[%clk 0:00:15]}  Qxf3+ {[%clk 0:01:19]} 52. Kh2 {[%clk 0:00:15]}  Qxf2+ {[%clk 0:01:19]} 53. Kh3 {[%clk 0:00:15]}  Qf3+ {[%clk 0:01:20]} 54. Kh2 {[%clk 0:00:13]}  Qxe4 {[%clk 0:01:20]} 0-1


[Site "https://www.chess.com"]

[Event "Titled Tuesday Blitz July 11 Early 2023"]
[White "Piesik, Piotr"]
[Black "AlivodicDario"]
[WhiteFideId "1136194"]
[WhiteElo "2605"]
[BlackElo "2511"]
[Result "1-0"]
[Round "10"]
[TimeControl "180+2"]
[Date "2023.07.11"]
[WhiteClock "0:01:23"]
[BlackClock "0:00:34"]
[Board "50"]

1. Nf3 {[%clk 0:02:59]}  d5 {[%clk 0:02:56]} 2. g3 {[%clk 0:02:59]}  c5 {[%clk 0:02:55]} 3. Bg2 {[%clk 0:03:00]}  Nc6 {[%clk 0:02:56]} 4. O-O {[%clk 0:03:00]}  e5 {[%clk 0:02:57]} 5. d3 {[%clk 0:03:00]}  Nge7 {[%clk 0:02:57]} 6. Nbd2 {[%clk 0:03:01]}  Ng6 {[%clk 0:02:57]} 7. e4 {[%clk 0:03:01]}  d4 {[%clk 0:02:58]} 8. a4 {[%clk 0:03:01]}  Be7 {[%clk 0:02:58]} 9. Nc4 {[%clk 0:03:01]}  h5 {[%clk 0:02:53]} 10. h4 {[%clk 0:02:59]}  Bg4 {[%clk 0:02:54]} 11. Qe1 {[%clk 0:02:59]}  Qd7 {[%clk 0:02:52]} 12. Nh2 {[%clk 0:02:58]}  Be6 {[%clk 0:02:48]} 13. Bd2 {[%clk 0:02:50]}  f6 {[%clk 0:02:47]} 14. f4 {[%clk 0:02:46]}  exf4 {[%clk 0:02:46]} 15. gxf4 {[%clk 0:02:47]}  f5 {[%clk 0:02:46]} 16. exf5 {[%clk 0:02:46]}  Bxf5 {[%clk 0:02:41]} 17. Nf3 {[%clk 0:02:44]}  O-O-O {[%clk 0:02:39]} 18. Ng5 {[%clk 0:02:40]}  Rde8 {[%clk 0:02:34]} 19. Qg3 {[%clk 0:02:40]}  Rhf8 {[%clk 0:02:24]} 20. a5 {[%clk 0:02:33]}  Bd6 {[%clk 0:02:15]} 21. Rae1 {[%clk 0:02:10]}  Kc7 {[%clk 0:01:58]} 22. Nxd6 {[%clk 0:02:06]}  Qxd6 {[%clk 0:01:55]} 23. Ne4 {[%clk 0:02:05]}  Qe7 {[%clk 0:01:41]} 24. Qg5 {[%clk 0:01:53]}  Qxg5 {[%clk 0:01:37]} 25. hxg5 {[%clk 0:01:54]}  b6 {[%clk 0:01:31]} 26. axb6+ {[%clk 0:01:50]}  axb6 {[%clk 0:01:32]} 27. Ng3 {[%clk 0:01:50]}  Bg4 {[%clk 0:01:22]} 28. Rxe8 {[%clk 0:01:45]}  Rxe8 {[%clk 0:01:22]} 29. f5 {[%clk 0:01:45]}  Nh4 {[%clk 0:01:21]} 30. Bf4+ {[%clk 0:01:42]}  Kb7 {[%clk 0:01:15]} 31. Be4 {[%clk 0:01:40]}  Rf8 {[%clk 0:01:10]} 32. Bd6 {[%clk 0:01:36]}  Rf7 {[%clk 0:01:09]} 33. f6 {[%clk 0:01:29]}  gxf6 {[%clk 0:01:06]} 34. g6 {[%clk 0:01:29]}  Rg7 {[%clk 0:00:56]} 35. Rxf6 {[%clk 0:01:29]}  Bd7 {[%clk 0:00:34]} 36. Rf7 {[%clk 0:01:23]} 1-0


[Site "https://www.chess.com"]